[Event "*** SCC Grand Prix: Titled Tuesday Blitz"]
[Site "Chess.com"]
[Date "2020.09.29"]
[Round "2"]
[White "juancruzarias"]
[Black "Dr-Bassem"]
[Result "1-0"]
[WhiteElo "2513"]
[BlackElo "2755"]
[TimeControl "180+1"]
[EndTime "10:14:06 PDT"]
[Termination "juancruzarias won by resignation"]

1. e4 {[%clk 0:03:00.9]} 1... e5 {[%clk 0:02:59.5]} 2. Nf3 {[%clk 0:02:58.7]}
2... Nc6 {[%clk 0:02:59.9]} 3. Nc3 {[%clk 0:02:59.2]} 3... Nf6 {[%clk
0:02:59.2]} 4. d4 {[%clk 0:02:58.3]} 4... exd4 {[%clk 0:03:00.1]} 5. Nxd4 {[%clk
0:02:59.1]} 5... Bb4 {[%clk 0:02:59.9]} 6. Nxc6 {[%clk 0:02:59.3]} 6... bxc6
{[%clk 0:03:00.8]} 7. Bd3 {[%clk 0:02:59.8]} 7... d5 {[%clk 0:03:00.2]} 8. exd5
{[%clk 0:03:00.7]} 8... cxd5 {[%clk 0:03:00.6]} 9. O-O {[%clk 0:03:01.3]} 9...
O-O {[%clk 0:03:01.1]} 10. Bg5 {[%clk 0:03:01.9]} 10... c6 {[%clk 0:03:00.3]}
11. Qf3 {[%clk 0:03:02.5]} 11... Be7 {[%clk 0:02:54.7]} 12. Rae1 {[%clk
0:03:02.4]} 12... h6 {[%clk 0:02:51.7]} 13. Bxh6 {[%clk 0:03:01.6]} 13... gxh6
{[%clk 0:02:48.3]} 14. Qe3 {[%clk 0:03:02.2]} 14... d4 {[%clk 0:02:18.1]} 15.
Qxh6 {[%clk 0:02:56.9]} 15... dxc3 {[%clk 0:02:12.3]} 16. Re5 {[%clk 0:02:06.7]}
16... Ne4 {[%clk 0:01:23.9]} 17. Rh5 {[%clk 0:02:00.8]} 1-0

[Event "*** SCC Grand Prix: Titled Tuesday Blitz"]
[Site "Chess.com"]
[Date "2020.09.29"]
[Round "2"]
[White "picturesquecheck"]
[Black "Tactictic"]
[Result "0-1"]
[WhiteElo "2197"]
[BlackElo "2414"]
[TimeControl "180+1"]
[EndTime "10:14:32 PDT"]
[Termination "Tactictic won by resignation"]

1. e4 {[%clk 0:03:00.9]} 1... c5 {[%clk 0:02:59.2]} 2. Nf3 {[%clk 0:03:00.9]}
2... d6 {[%clk 0:02:59]} 3. d4 {[%clk 0:03:01.6]} 3... cxd4 {[%clk 0:02:59.9]}
4. Nxd4 {[%clk 0:03:02.4]} 4... Nf6 {[%clk 0:02:59.7]} 5. Nc3 {[%clk 0:02:59.8]}
5... a6 {[%clk 0:02:59.7]} 6. Be3 {[%clk 0:02:59.8]} 6... e5 {[%clk 0:02:59.3]}
7. Nb3 {[%clk 0:02:59.6]} 7... Be6 {[%clk 0:02:57.5]} 8. f3 {[%clk 0:02:58.2]}
8... h5 {[%clk 0:02:57.5]} 9. Qd2 {[%clk 0:02:57.6]} 9... Be7 {[%clk 0:02:56.2]}
10. Nd5 {[%clk 0:02:56.4]} 10... Bxd5 {[%clk 0:02:54.5]} 11. exd5 {[%clk
0:02:53.1]} 11... Nbd7 {[%clk 0:02:54.6]} 12. O-O-O {[%clk 0:02:48.3]} 12... O-O
{[%clk 0:02:48.1]} 13. Kb1 {[%clk 0:02:45]} 13... a5 {[%clk 0:02:45.2]} 14. c4
{[%clk 0:02:41.2]} 14... a4 {[%clk 0:02:40.6]} 15. Nc1 {[%clk 0:02:41.2]} 15...
Qa5 {[%clk 0:02:36]} 16. Qc2 {[%clk 0:02:18.7]} 16... Rfc8 {[%clk 0:02:31.3]}
17. Bd2 {[%clk 0:01:40.2]} 17... Qc5 {[%clk 0:02:17.3]} 18. h3 {[%clk
0:01:37.8]} 18... b5 {[%clk 0:02:15.6]} 19. g4 {[%clk 0:01:26]} 19... bxc4
{[%clk 0:02:14]} 20. gxh5 {[%clk 0:01:25.7]} 20... Rab8 {[%clk 0:02:10.9]} 21.
Ka1 {[%clk 0:01:11.9]} 21... a3 {[%clk 0:02:08.4]} 22. bxa3 {[%clk 0:01:07.6]}
22... Nxd5 {[%clk 0:01:47.2]} 23. Rg1 {[%clk 0:00:55.7]} 23... Qd4+ {[%clk
0:01:44.7]} 24. Bc3 {[%clk 0:00:49.8]} 24... Qxc3+ {[%clk 0:01:41.7]} 0-1

[Event "*** SCC Grand Prix: Titled Tuesday Blitz"]
[Site "Chess.com"]
[Date "2020.09.29"]
[Round "2"]
[White "Makswolf200817"]
[Black "KingHarii"]
[Result "0-1"]
[WhiteElo "2421"]
[BlackElo "2700"]
[TimeControl "180+1"]
[EndTime "10:14:37 PDT"]
[Termination "KingHarii won by resignation"]

1. d4 {[%clk 0:03:00.9]} 1... d5 {[%clk 0:02:58.9]} 2. c4 {[%clk 0:03:00.4]}
2... e6 {[%clk 0:02:59.2]} 3. Nc3 {[%clk 0:03:00]} 3... Nf6 {[%clk 0:02:59.6]}
4. cxd5 {[%clk 0:03:00.1]} 4... exd5 {[%clk 0:02:59.7]} 5. Bg5 {[%clk
0:03:00.2]} 5... c6 {[%clk 0:03:00]} 6. Qc2 {[%clk 0:02:59.6]} 6... Be7 {[%clk
0:03:00.3]} 7. e3 {[%clk 0:02:59.4]} 7... h6 {[%clk 0:02:57.5]} 8. Bh4 {[%clk
0:02:55.2]} 8... Nbd7 {[%clk 0:02:50]} 9. Bd3 {[%clk 0:02:55]} 9... Nh5 {[%clk
0:02:49.5]} 10. Bxe7 {[%clk 0:02:53.2]} 10... Qxe7 {[%clk 0:02:50.4]} 11. Nge2
{[%clk 0:02:53.6]} 11... O-O {[%clk 0:02:49.3]} 12. O-O {[%clk 0:02:50.5]} 12...
a5 {[%clk 0:02:49.5]} 13. Rae1 {[%clk 0:02:47.1]} 13... b5 {[%clk 0:02:46.6]}
14. a4 {[%clk 0:02:39.8]} 14... b4 {[%clk 0:02:43.5]} 15. Nb1 {[%clk 0:02:39.9]}
15... c5 {[%clk 0:02:42.4]} 16. dxc5 {[%clk 0:02:35.7]} 16... Nxc5 {[%clk
0:02:43.3]} 17. Bb5 {[%clk 0:02:34.7]} 17... Be6 {[%clk 0:02:23]} 18. Nd4 {[%clk
0:02:33.6]} 18... Rac8 {[%clk 0:02:21.1]} 19. Qe2 {[%clk 0:02:27.8]} 19... Nf6
{[%clk 0:02:20.3]} 20. Nd2 {[%clk 0:02:28]} 20... Qd6 {[%clk 0:02:12.5]} 21. Rc1
{[%clk 0:02:27.1]} 21... Bd7 {[%clk 0:02:08.1]} 22. N2b3 {[%clk 0:02:09.2]}
22... Nxa4 {[%clk 0:02:01.9]} 23. Nxa5 {[%clk 0:02:03]} 23... Qb6 {[%clk
0:02:01.5]} 24. Bxd7 {[%clk 0:01:59]} 24... Nxd7 {[%clk 0:02:02.4]} 25. Nac6
{[%clk 0:01:56.5]} 25... Rce8 {[%clk 0:01:50.9]} 26. Qd2 {[%clk 0:01:53]} 26...
Ne5 {[%clk 0:01:41.7]} 27. b3 {[%clk 0:01:46.1]} 27... Nc3 {[%clk 0:01:41.9]}
28. Nxb4 {[%clk 0:01:45.5]} 28... Ne4 {[%clk 0:01:42.1]} 29. Qe1 {[%clk
0:01:42]} 29... Qd6 {[%clk 0:01:35.9]} 30. Nbc6 {[%clk 0:01:37.4]} 30... Ng4
{[%clk 0:01:35]} 31. g3 {[%clk 0:01:33.7]} 31... Ng5 {[%clk 0:01:26.7]} 32. Qe2
{[%clk 0:01:28.9]} 32... f5 {[%clk 0:01:22.2]} 33. Nxf5 {[%clk 0:01:26]} 33...
Rxf5 {[%clk 0:01:23.1]} 34. Qf3 {[%clk 0:01:26.4]} 34... Nxf3+ {[%clk
0:01:22.8]} 0-1

[Event "*** SCC Grand Prix: Titled Tuesday Blitz"]
[Site "Chess.com"]
[Date "2020.09.29"]
[Round "2"]
[White "goldenpuppy"]
[Black "Ermito2020"]
[Result "0-1"]
[WhiteElo "2387"]
[BlackElo "2677"]
[TimeControl "180+1"]
[EndTime "10:14:47 PDT"]
[Termination "Ermito2020 won by checkmate"]

1. e4 {[%clk 0:03:00.9]} 1... e6 {[%clk 0:02:59.8]} 2. d4 {[%clk 0:03:00.3]}
2... d5 {[%clk 0:03:00.4]} 3. Nc3 {[%clk 0:03:00.2]} 3... Bb4 {[%clk 0:03:00.3]}
4. e5 {[%clk 0:02:59.9]} 4... c5 {[%clk 0:03:00.1]} 5. a3 {[%clk 0:02:59.1]}
5... Bxc3+ {[%clk 0:03:00.6]} 6. bxc3 {[%clk 0:02:59.9]} 6... Ne7 {[%clk
0:03:01.1]} 7. Qg4 {[%clk 0:02:58.7]} 7... cxd4 {[%clk 0:03:01.2]} 8. Qxg7
{[%clk 0:02:57.2]} 8... Rg8 {[%clk 0:03:00.9]} 9. Qxh7 {[%clk 0:02:57.7]} 9...
Qc7 {[%clk 0:03:01.5]} 10. Ne2 {[%clk 0:02:57.5]} 10... Nbc6 {[%clk 0:03:01.2]}
11. f4 {[%clk 0:02:57.7]} 11... dxc3 {[%clk 0:03:01.6]} 12. Qd3 {[%clk
0:02:57.6]} 12... d4 {[%clk 0:03:00]} 13. Nxd4 {[%clk 0:02:57.5]} 13... Nxd4
{[%clk 0:02:59.5]} 14. Qxd4 {[%clk 0:02:58.4]} 14... Bd7 {[%clk 0:02:58.4]} 15.
Rg1 {[%clk 0:02:57.2]} 15... Nf5 {[%clk 0:02:56.7]} 16. Qf2 {[%clk 0:02:56.9]}
16... Qc6 {[%clk 0:02:56]} 17. Bd3 {[%clk 0:02:56.2]} 17... Qd5 {[%clk
0:02:55.6]} 18. Be3 {[%clk 0:02:55.7]} 18... Bc6 {[%clk 0:02:49.1]} 19. g4
{[%clk 0:02:52.8]} 19... Nxe3 {[%clk 0:02:30.9]} 20. Qxe3 {[%clk 0:02:53.7]}
20... O-O-O {[%clk 0:02:22.2]} 21. Qxa7 {[%clk 0:02:48.4]} 21... Qf3 {[%clk
0:02:21.6]} 22. Qf2 {[%clk 0:02:25]} 22... Rxg4 {[%clk 0:02:20.5]} 23. Rxg4
{[%clk 0:02:20.5]} 23... Qxg4 {[%clk 0:02:20.2]} 24. Rb1 {[%clk 0:02:03.8]}
24... Kb8 {[%clk 0:02:17.7]} 25. a4 {[%clk 0:01:57.6]} 25... Rg8 {[%clk
0:02:10.5]} 26. a5 {[%clk 0:01:48.2]} 26... Qg1+ {[%clk 0:01:36.3]} 27. Bf1
{[%clk 0:01:44.4]} 27... Qh1 {[%clk 0:01:36]} 28. a6 {[%clk 0:01:15.7]} 28...
Qe4+ {[%clk 0:01:34.8]} 29. Qe2 {[%clk 0:01:09.7]} 29... Qxf4 {[%clk 0:01:24.5]}
30. axb7 {[%clk 0:01:08.7]} 30... Rg5 {[%clk 0:01:22]} 31. Qa6 {[%clk
0:01:02.4]} 31... Qd2# {[%clk 0:01:21]} 0-1

[Event "*** SCC Grand Prix: Titled Tuesday Blitz"]
[Site "Chess.com"]
[Date "2020.09.29"]
[Round "2"]
[White "gmcorrales"]
[Black "manitodeplomo"]
[Result "0-1"]
[WhiteElo "2870"]
[BlackElo "2572"]
[TimeControl "180+1"]
[EndTime "10:14:50 PDT"]
[Termination "manitodeplomo won by resignation"]

1. e4 {[%clk 0:03:00.9]} 1... c5 {[%clk 0:02:48.7]} 2. Nf3 {[%clk 0:03:00.1]}
2... e6 {[%clk 0:02:49]} 3. d4 {[%clk 0:02:55.6]} 3... cxd4 {[%clk 0:02:49.9]}
4. Nxd4 {[%clk 0:02:56]} 4... Nf6 {[%clk 0:02:50.1]} 5. Nc3 {[%clk 0:02:55.5]}
5... Bb4 {[%clk 0:02:50.7]} 6. e5 {[%clk 0:02:44.6]} 6... Nd5 {[%clk 0:02:49.1]}
7. Qg4 {[%clk 0:02:41.2]} 7... Kf8 {[%clk 0:02:47]} 8. Bd2 {[%clk 0:02:24.9]}
8... d6 {[%clk 0:02:46.9]} 9. exd6 {[%clk 0:02:18.8]} 9... Qxd6 {[%clk
0:02:44.3]} 10. O-O-O {[%clk 0:01:37.2]} 10... Bxc3 {[%clk 0:02:36.9]} 11. Bxc3
{[%clk 0:01:34.2]} 11... Nxc3 {[%clk 0:02:32.3]} 12. bxc3 {[%clk 0:01:33]} 12...
Qa3+ {[%clk 0:02:28.7]} 13. Kb1 {[%clk 0:01:32.8]} 13... Nc6 {[%clk 0:02:21]}
14. Bb5 {[%clk 0:00:27.1]} 14... e5 {[%clk 0:01:59.2]} 15. Qh4 {[%clk
0:00:26.6]} 15... exd4 {[%clk 0:01:40.3]} 16. Bxc6 {[%clk 0:00:26.2]} 16... Be6
{[%clk 0:01:36.4]} 17. Rxd4 {[%clk 0:00:20.9]} 17... Bxa2+ {[%clk 0:01:32.7]}
18. Ka1 {[%clk 0:00:21.1]} 18... Bb3+ {[%clk 0:01:32.9]} 19. Kb1 {[%clk
0:00:21.6]} 19... Qa2+ {[%clk 0:01:33.5]} 0-1

[Event "*** SCC Grand Prix: Titled Tuesday Blitz"]
[Site "Chess.com"]
[Date "2020.09.29"]
[Round "2"]
[White "Superfelix"]
[Black "anon102030"]
[Result "0-1"]
[WhiteElo "2483"]
[BlackElo "2745"]
[TimeControl "180+1"]
[EndTime "10:14:52 PDT"]
[Termination "anon102030 won by resignation"]

1. e4 {[%clk 0:03:00.9]} 1... e5 {[%clk 0:02:53.9]} 2. Nf3 {[%clk 0:03:00.7]}
2... Nc6 {[%clk 0:02:54]} 3. d4 {[%clk 0:03:00.8]} 3... exd4 {[%clk 0:02:53.6]}
4. Nxd4 {[%clk 0:03:01.7]} 4... Bc5 {[%clk 0:02:52.8]} 5. Nf5 {[%clk 0:03:01.6]}
5... Bf8 {[%clk 0:02:37.9]} 6. Nc3 {[%clk 0:03:01]} 6... g6 {[%clk 0:02:34.8]}
7. Ne3 {[%clk 0:03:01.1]} 7... Bg7 {[%clk 0:02:34.2]} 8. h4 {[%clk 0:03:00.3]}
8... d6 {[%clk 0:02:30.2]} 9. h5 {[%clk 0:02:59.5]} 9... Be6 {[%clk 0:02:29.5]}
10. Ned5 {[%clk 0:02:56.5]} 10... g5 {[%clk 0:02:16.6]} 11. Be3 {[%clk
0:02:44.7]} 11... h6 {[%clk 0:02:15.1]} 12. Qd2 {[%clk 0:02:43.4]} 12... Ne5
{[%clk 0:02:08.3]} 13. Nb5 {[%clk 0:02:25.8]} 13... Bxd5 {[%clk 0:02:02.1]} 14.
exd5 {[%clk 0:02:23.7]} 14... a6 {[%clk 0:01:52.4]} 15. Nd4 {[%clk 0:02:23.1]}
15... Ne7 {[%clk 0:01:53.1]} 16. c4 {[%clk 0:02:19.8]} 16... Qd7 {[%clk
0:01:52.6]} 17. Bd3 {[%clk 0:02:16.5]} 17... O-O {[%clk 0:01:48.1]} 18. O-O-O
{[%clk 0:02:06.3]} 18... c5 {[%clk 0:01:44.2]} 19. Nc2 {[%clk 0:01:59.1]} 19...
b5 {[%clk 0:01:28.5]} 20. f4 {[%clk 0:01:49.7]} 20... gxf4 {[%clk 0:01:21.9]}
21. Bxf4 {[%clk 0:01:48.6]} 21... bxc4 {[%clk 0:01:16]} 22. Be2 {[%clk
0:01:36.5]} 22... Rab8 {[%clk 0:01:09.1]} 23. Ne3 {[%clk 0:01:26.3]} 23... Nd3+
{[%clk 0:01:04.1]} 24. Bxd3 {[%clk 0:01:25.8]} 24... Bxb2+ {[%clk 0:00:54.8]}
25. Kc2 {[%clk 0:01:22.9]} 25... Qa4+ {[%clk 0:00:49.6]} 26. Kb1 {[%clk
0:01:22.8]} 0-1

[Event "*** SCC Grand Prix: Titled Tuesday Blitz"]
[Site "Chess.com"]
[Date "2020.09.29"]
[Round "2"]
[White "MomchilPetkov"]
[Black "ChessWarrior7197"]
[Result "0-1"]
[WhiteElo "2589"]
[BlackElo "2950"]
[TimeControl "180+1"]
[EndTime "10:14:55 PDT"]
[Termination "ChessWarrior7197 won by resignation"]

1. e4 {[%clk 0:03:00.9]} 1... e5 {[%clk 0:02:58.8]} 2. Nf3 {[%clk 0:02:59.8]}
2... Nc6 {[%clk 0:02:59.4]} 3. Bb5 {[%clk 0:03:00.3]} 3... a6 {[%clk 0:02:59.9]}
4. Ba4 {[%clk 0:03:00.5]} 4... Nf6 {[%clk 0:03:00.4]} 5. O-O {[%clk 0:03:00.9]}
5... Nxe4 {[%clk 0:03:01]} 6. d4 {[%clk 0:02:59.3]} 6... b5 {[%clk 0:03:01.3]}
7. Bb3 {[%clk 0:02:58.3]} 7... d5 {[%clk 0:03:01.9]} 8. dxe5 {[%clk 0:02:58.3]}
8... Be6 {[%clk 0:03:01.8]} 9. Qe2 {[%clk 0:02:58.3]} 9... Be7 {[%clk
0:03:01.1]} 10. Rd1 {[%clk 0:02:57.9]} 10... O-O {[%clk 0:03:01.6]} 11. c4
{[%clk 0:02:50.5]} 11... bxc4 {[%clk 0:03:02.5]} 12. Bxc4 {[%clk 0:02:50.6]}
12... Bc5 {[%clk 0:03:03.1]} 13. Be3 {[%clk 0:02:49.4]} 13... Bxe3 {[%clk
0:03:03.6]} 14. Qxe3 {[%clk 0:02:50]} 14... Qb8 {[%clk 0:03:04.2]} 15. Bb3
{[%clk 0:02:45.9]} 15... Qb6 {[%clk 0:03:04.7]} 16. Qxb6 {[%clk 0:02:44.3]}
16... cxb6 {[%clk 0:03:05.6]} 17. Na3 {[%clk 0:02:44.7]} 17... Rfd8 {[%clk
0:03:05.2]} 18. Nc2 {[%clk 0:02:42.2]} 18... Na5 {[%clk 0:03:05.4]} 19. Ncd4
{[%clk 0:02:36.4]} 19... Rac8 {[%clk 0:03:02.9]} 20. Rac1 {[%clk 0:02:35.7]}
20... Nc4 {[%clk 0:02:57.9]} 21. Bxc4 {[%clk 0:02:00.7]} 21... dxc4 {[%clk
0:02:54.5]} 22. Nc6 {[%clk 0:01:55.2]} 22... Rxd1+ {[%clk 0:02:44.5]} 23. Rxd1
{[%clk 0:01:56.1]} 23... Kf8 {[%clk 0:02:43.6]} 24. Ncd4 {[%clk 0:01:39.5]}
24... c3 {[%clk 0:02:30.6]} 25. bxc3 {[%clk 0:01:32.2]} 25... Bxa2 {[%clk
0:02:27.2]} 26. Ra1 {[%clk 0:01:04.3]} 26... Nxc3 {[%clk 0:02:26.4]} 27. g4
{[%clk 0:00:58.3]} 27... b5 {[%clk 0:02:26.2]} 28. Nf5 {[%clk 0:00:57.5]} 28...
b4 {[%clk 0:02:25.6]} 29. Nd6 {[%clk 0:00:57.3]} 29... Rb8 {[%clk 0:02:23.2]}
30. Nd2 {[%clk 0:00:50.8]} 30... b3 {[%clk 0:02:23]} 31. N2c4 {[%clk 0:00:47.8]}
31... b2 {[%clk 0:02:22.3]} 32. Nxb2 {[%clk 0:00:47.4]} 32... Rxb2 {[%clk
0:02:23.2]} 33. Kg2 {[%clk 0:00:46.9]} 33... Rb1 {[%clk 0:02:23.7]} 34. Rxb1
{[%clk 0:00:45.5]} 34... Bxb1 {[%clk 0:02:24.6]} 35. Kf3 {[%clk 0:00:45.6]}
35... a5 {[%clk 0:02:25]} 36. Ke3 {[%clk 0:00:46]} 36... a4 {[%clk 0:02:25.6]}
37. Nc4 {[%clk 0:00:46.5]} 37... Ke7 {[%clk 0:02:18.6]} 38. Kd4 {[%clk
0:00:42.2]} 38... Nb5+ {[%clk 0:02:19]} 39. Kc5 {[%clk 0:00:39.4]} 39... a3
{[%clk 0:02:19.9]} 40. Nd2 {[%clk 0:00:37.9]} 40... Bc2 {[%clk 0:02:16.4]} 0-1

[Event "*** SCC Grand Prix: Titled Tuesday Blitz"]
[Site "Chess.com"]
[Date "2020.09.29"]
[Round "2"]
[White "Infernal_XaM"]
[Black "davigator"]
[Result "1-0"]
[WhiteElo "2842"]
[BlackElo "2350"]
[TimeControl "180+1"]
[EndTime "10:15:00 PDT"]
[Termination "Infernal_XaM won by resignation"]

1. d4 {[%clk 0:02:27.8]} 1... Nf6 {[%clk 0:02:49.3]} 2. c4 {[%clk 0:02:28.3]}
2... e6 {[%clk 0:02:48.4]} 3. Nc3 {[%clk 0:02:28.8]} 3... Bb4 {[%clk 0:02:48.2]}
4. Bd2 {[%clk 0:02:29.1]} 4... d5 {[%clk 0:02:46.5]} 5. cxd5 {[%clk 0:02:28.3]}
5... exd5 {[%clk 0:02:46.2]} 6. e3 {[%clk 0:02:28.6]} 6... O-O {[%clk
0:02:46.1]} 7. Bd3 {[%clk 0:02:29.1]} 7... c6 {[%clk 0:02:44]} 8. Nge2 {[%clk
0:02:29.6]} 8... a5 {[%clk 0:02:40.4]} 9. O-O {[%clk 0:02:27.9]} 9... Re8 {[%clk
0:02:40]} 10. f3 {[%clk 0:02:27.3]} 10... Nbd7 {[%clk 0:02:38.2]} 11. Kh1 {[%clk
0:02:26.6]} 11... Nf8 {[%clk 0:02:37.6]} 12. g4 {[%clk 0:02:26.7]} 12... Ng6
{[%clk 0:02:34.9]} 13. Ng3 {[%clk 0:02:26.8]} 13... Nh4 {[%clk 0:02:30.7]} 14.
a3 {[%clk 0:02:25]} 14... Bd6 {[%clk 0:02:29.8]} 15. g5 {[%clk 0:02:15.6]} 15...
Nd7 {[%clk 0:02:23.8]} 16. e4 {[%clk 0:02:15.4]} 16... dxe4 {[%clk 0:02:19.2]}
17. fxe4 {[%clk 0:02:14.6]} 17... Nf8 {[%clk 0:02:14.8]} 18. Qh5 {[%clk
0:02:11.2]} 18... Nhg6 {[%clk 0:02:14.1]} 19. Nce2 {[%clk 0:02:09.4]} 19... c5
{[%clk 0:02:10.3]} 20. Bc4 {[%clk 0:02:02.3]} 20... Be6 {[%clk 0:02:09]} 21.
Bxe6 {[%clk 0:02:02.4]} 21... Nxe6 {[%clk 0:02:06.3]} 22. d5 {[%clk 0:02:02.4]}
22... Nef8 {[%clk 0:02:04.1]} 23. a4 {[%clk 0:01:54.7]} 23... Nd7 {[%clk
0:01:55.5]} 24. Bc3 {[%clk 0:01:48.2]} 24... Be5 {[%clk 0:01:54.8]} 25. Rf2
{[%clk 0:01:36.6]} 25... Rf8 {[%clk 0:01:43.9]} 26. Raf1 {[%clk 0:01:35.2]}
26... Qb6 {[%clk 0:01:42]} 27. Nf5 {[%clk 0:01:33.9]} 27... Rae8 {[%clk
0:01:34.6]} 28. Rf3 {[%clk 0:01:33.4]} 28... Ne7 {[%clk 0:01:18.5]} 29. Nxg7
{[%clk 0:01:11.3]} 29... Bxg7 {[%clk 0:01:07.9]} 30. Bxg7 {[%clk 0:01:10.5]}
30... Kxg7 {[%clk 0:01:06.5]} 31. Rxf7+ {[%clk 0:01:10.5]} 1-0

[Event "*** SCC Grand Prix: Titled Tuesday Blitz"]
[Site "Chess.com"]
[Date "2020.09.29"]
[Round "2"]
[White "killer311"]
[Black "GmSergioBarrientos"]
[Result "0-1"]
[WhiteElo "2442"]
[BlackElo "2691"]
[TimeControl "180+1"]
[EndTime "10:15:05 PDT"]
[Termination "GmSergioBarrientos won by checkmate"]

1. d4 {[%clk 0:03:00.9]} 1... Nf6 {[%clk 0:02:59.4]} 2. c4 {[%clk 0:02:54.9]}
2... e6 {[%clk 0:02:59]} 3. Nc3 {[%clk 0:02:52.9]} 3... Bb4 {[%clk 0:02:58.2]}
4. Bd2 {[%clk 0:02:52.5]} 4... d5 {[%clk 0:02:54.3]} 5. e3 {[%clk 0:02:52.4]}
5... O-O {[%clk 0:02:48.3]} 6. Nf3 {[%clk 0:02:51.4]} 6... c5 {[%clk 0:02:46.4]}
7. a3 {[%clk 0:02:48.6]} 7... cxd4 {[%clk 0:02:43.7]} 8. exd4 {[%clk 0:02:37.4]}
8... Be7 {[%clk 0:02:40.1]} 9. cxd5 {[%clk 0:02:31.5]} 9... Nxd5 {[%clk
0:02:38.7]} 10. Bd3 {[%clk 0:02:25.2]} 10... Nc6 {[%clk 0:02:38.4]} 11. O-O
{[%clk 0:02:24.5]} 11... Bf6 {[%clk 0:02:08.6]} 12. Nxd5 {[%clk 0:02:12.5]}
12... exd5 {[%clk 0:02:02.1]} 13. Bc3 {[%clk 0:02:08.3]} 13... Bg4 {[%clk
0:02:00.8]} 14. h3 {[%clk 0:01:59.5]} 14... Bxf3 {[%clk 0:01:53]} 15. Qxf3
{[%clk 0:02:00.4]} 15... Bxd4 {[%clk 0:01:47.3]} 16. Bxd4 {[%clk 0:01:58.4]}
16... Nxd4 {[%clk 0:01:43.3]} 17. Qg4 {[%clk 0:01:57.9]} 17... Ne6 {[%clk
0:01:33.1]} 18. Rad1 {[%clk 0:01:56.7]} 18... Qf6 {[%clk 0:01:19.4]} 19. b4
{[%clk 0:01:46.6]} 19... g6 {[%clk 0:01:17.7]} 20. Bc2 {[%clk 0:01:40.1]} 20...
Rad8 {[%clk 0:01:16.9]} 21. Bb3 {[%clk 0:01:35.6]} 21... h5 {[%clk 0:01:11.9]}
22. Qg3 {[%clk 0:01:32.4]} 22... Nf4 {[%clk 0:01:11]} 23. Rd2 {[%clk 0:01:30.2]}
23... Rfe8 {[%clk 0:01:09.2]} 24. Rfd1 {[%clk 0:01:29.9]} 24... Ne2+ {[%clk
0:01:06.5]} 25. Rxe2 {[%clk 0:01:29.4]} 25... Rxe2 {[%clk 0:01:07.4]} 26. Rxd5
{[%clk 0:01:23.5]} 26... Rxd5 {[%clk 0:01:03.2]} 27. Bxd5 {[%clk 0:01:24.2]}
27... h4 {[%clk 0:01:01.8]} 28. Qc7 {[%clk 0:01:20.5]} 28... Qxf2+ {[%clk
0:00:55.2]} 29. Kh1 {[%clk 0:01:18.8]} 29... Re1+ {[%clk 0:00:54.3]} 30. Kh2
{[%clk 0:01:18.8]} 30... Qg1# {[%clk 0:00:54.5]} 0-1

[Event "*** SCC Grand Prix: Titled Tuesday Blitz"]
[Site "Chess.com"]
[Date "2020.09.29"]
[Round "2"]
[White "chessmachine14"]
[Black "Omk124"]
[Result "1-0"]
[WhiteElo "2297"]
[BlackElo "2435"]
[TimeControl "180+1"]
[EndTime "10:15:07 PDT"]
[Termination "chessmachine14 won by resignation"]

1. e4 {[%clk 0:03:00.9]} 1... g6 {[%clk 0:02:58.5]} 2. d4 {[%clk 0:02:57.7]}
2... Bg7 {[%clk 0:02:57.1]} 3. Nc3 {[%clk 0:02:56.7]} 3... c6 {[%clk 0:02:57.1]}
4. h3 {[%clk 0:02:51.4]} 4... d6 {[%clk 0:02:54.8]} 5. f4 {[%clk 0:02:47.1]}
5... e5 {[%clk 0:02:52.9]} 6. dxe5 {[%clk 0:02:44.7]} 6... Qh4+ {[%clk
0:02:50.4]} 7. Ke2 {[%clk 0:02:39.8]} 7... Bg4+ {[%clk 0:02:50.2]} 8. hxg4
{[%clk 0:02:35.2]} 8... Qxh1 {[%clk 0:02:50.1]} 9. Qxd6 {[%clk 0:02:23.9]} 9...
Qxg1 {[%clk 0:02:44.8]} 10. Be3 {[%clk 0:02:19.9]} 10... Qxe3+ {[%clk
0:02:09.3]} 11. Kxe3 {[%clk 0:02:17.5]} 11... Nd7 {[%clk 0:02:10.2]} 12. Rd1
{[%clk 0:02:13.4]} 12... O-O-O {[%clk 0:02:10.2]} 13. Nb5 {[%clk 0:02:07.9]}
13... cxb5 {[%clk 0:01:57.6]} 14. Bxb5 {[%clk 0:02:07.4]} 14... Ngf6 {[%clk
0:01:52.4]} 15. exf6 {[%clk 0:01:14.1]} 15... Nxf6 {[%clk 0:01:53.3]} 16. Qc5+
{[%clk 0:01:11.2]} 16... Kb8 {[%clk 0:01:53.7]} 17. Qe5+ {[%clk 0:01:04]} 17...
Ka8 {[%clk 0:01:52.3]} 18. Rxd8+ {[%clk 0:01:02.6]} 18... Rxd8 {[%clk
0:01:53.2]} 19. Qe7 {[%clk 0:01:00.5]} 19... Rf8 {[%clk 0:01:53.2]} 20. g5
{[%clk 0:00:45.7]} 20... Ng8 {[%clk 0:01:47.9]} 21. Qc7 {[%clk 0:00:42.9]} 21...
Bxb2 {[%clk 0:01:43.8]} 22. Bc4 {[%clk 0:00:41.3]} 22... f6 {[%clk 0:01:37.8]}
23. Bd5 {[%clk 0:00:41.2]} 23... Rb8 {[%clk 0:01:37.7]} 24. a4 {[%clk
0:00:38.2]} 24... h6 {[%clk 0:01:34.8]} 25. a5 {[%clk 0:00:37.9]} 1-0